Cogmind - Beta 13 @@@ ROGUE MODE // 2024.06.09 @ 23:04:08 Player: Sionnis Result: Destroyed by M1-EOQ(z) with Makeshift Shrapnel Gun Performance ------------- Evolutions (4) 2000 Regions Visited (14) 2800 Robots Destroyed (229) 1145 Value Destroyed (7224) 7224 Prototype IDs (13) 260 Alien Tech Used (0) 0 Bonus (840) 840 TOTAL SCORE: 14269 Bonus ------- High Alert Combat Kills 969 Follower Combat Kills 319 Entered Garrisons 200 Used RIF Installer 500 Met Data Miner 300 Friendly Fire -1448 Cogmind --------- Core Integrity 0/850 Matter 203/300 Energy 90/100 System Corruption 16% Temperature Cool (0) Movement Flying (55) Location -6/Zion Parts ------- > --- POWER (2) -------- (None) > --- PROPULSION (3) --- Makeshift Flight Unit > --- UTILITY (6) ------ Improved Light Armor Plating > --- WEAPON (4) ------- Heavy Flail Makeshift Spear > --- INVENTORY (5) ---- Advanced Sensor Array Advanced Signal Interpreter Advanced Shield Generator Hacking Suite Peak State ------------ > --- POWER ------------ Reinforced Deuterium Engine Neutrino Core > --- PROPULSION ------- Armored Treads Heavy Treads > --- UTILITY ---------- Advanced Cooling System High-capacity Storage Unit Core Analyzer Improved Kinecellerator Improved Medium Armor Plating Improved Medium Armor Plating > --- WEAPON ----------- Precision Beam Rifle Precision Beam Rifle Wave Gun Flak Gun > --- INVENTORY -------- Armored Treads Armored Treads Advanced Cooling System Improved Sensor Array Improved Signal Interpreter 0b10 Decoder Chip [Looter] Improved Light Armor Plating Improved Light Armor Plating Improved Light Armor Plating Improved Medium Armor Plating Improved Medium Armor Plating Improved Medium Armor Plating Advanced Shield Generator Hacking Suite Wave Gun Heavy Missile Launcher Heavy Missile Launcher Great Maul [Rating: 75] Favorites ----------- Power Neutrino Core Engine Improved Deuterium Engine Power Core Neutrino Core Propulsion Armored Treads Treads Armored Treads Wheel Subdweller Monowheel Flight Unit Makeshift Flight Unit Utility Improved Medium Armor Plating Device Advanced Cooling System Storage High-capacity Storage Unit Processor Core Analyzer Hackware Hacking Suite Protection Improved Medium Armor Plating Weapon Flak Gun Energy Gun Precision Beam Rifle Energy Cannon Subdweller Beam Cannon Ballistic Gun Flak Gun Launcher Heavy Missile Launcher Impact Weapon Great Maul Piercing Weapon Makeshift Spear Build | -11 -10 -10 -10 -8 -8 -8 -7 -7 -7 -6 -6 -6 -6 -6 ------- Run | Yrd Mat Min Sub Mat Gar Mat Fac Low Dat Pro Fac Low Low Zio Slots Evolved 8 | . . . . 4 . . 2 . . . 2 . . . Power 1 | . . . . . . . . . . . 1 . . . Propulsion 1 | . . . . . . . 1 . . . . . . . Utility 4 | . . . . 3 . . 1 . . . . . . . Weapon 2 | . . . . 1 . . . . . . 1 . . . Parts Attached 138 | 3 4 3 10 31 15 . 3 2 . 8 15 8 7 29 Power 16 | 1 . 1 1 7 . . . . . . 2 1 1 2 Engine 13 | 1 . 1 1 6 . . . . . . 1 1 . 2 Core 3 | . . . . 1 . . . . . . 1 . 1 . Reactor . | . . . . . . . . . . . . . . . Propulsion 21 | 2 . . 2 7 1 . 1 . . 1 2 1 1 3 Treads 18 | 2 . . . 7 1 . 1 . . 1 2 1 1 2 Leg . | . . . . . . . . . . . . . . . Wheel 2 | . . . 2 . . . . . . . . . . . Hover . | . . . . . . . . . . . . . . . Flight 1 | . . . . . . . . . . . . . . 1 Utility 51 | . 2 . . 11 10 . 1 1 . 2 3 2 4 15 Device 13 | . . . . 4 3 . 1 . . . 1 . 1 3 Storage 2 | . 1 . . 1 . . . . . . . . . . Processor 4 | . 1 . . 2 1 . . . . . . . . . Hackware 1 | . . . . 1 . . . . . . . . . . Protection 31 | . . . . 3 6 . . 1 . 2 2 2 3 12 Artifact . | . . . . . . . . . . . . . . . Weapon 50 | . 2 2 7 6 4 . 1 1 . 5 8 4 1 9 Energy Gun 18 | . . . . 1 1 . . 1 . 3 4 3 1 4 Energy Cannon 3 | . . . 3 . . . . . . . . . . . Ballistic Gun 22 | . 2 2 3 5 3 . 1 . . . 4 1 . 1 Ballistic Cannon . | . . . . . . . . . . . . . . . Launcher 4 | . . . 1 . . . . . . 2 . . . 1 Special Weapon . | . . . . . . . . . . . . . . . Impact Weapon 2 | . . . . . . . . . . . . . . 2 Slashing Weapon . | . . . . . . . . . . . . . . . Piercing Weapon 1 | . . . . . . . . . . . . . . 1 Special Melee Weapon . | . . . . . . . . . . . . . . . Unidentified Prototypes 3 | . . . . 1 . . . . . . 1 . . 1 Parts Lost 48 | . . 4 1 5 7 . . 2 . 1 3 4 1 20 Power 7 | . . 1 1 2 . . . . . . . . . 3 Propulsion 6 | . . 1 . . . . . . . . 1 . . 4 Utility 16 | . . . . 2 5 . . 1 . . . 2 . 6 Weapon 19 | . . 2 . 1 2 . . 1 . 1 2 2 1 7 Highest Loss Streak 6 | . . 4 1 4 3 . . 1 . 1 1 2 1 6 To Critical Strikes 3 | . . . . . . . . . . . . . . 3 Average Slot Usage (%) 95 | . 89 89 93 99 94 90 91 91 92 91 96 98 99 85 Engine 7 | . 14 13 13 8 9 9 7 7 7 7 6 6 6 5 Core 2 | . . . . . . . . . . . 6 6 6 4 Treads 16 | . 28 18 5 17 13 9 15 15 15 15 16 20 20 15 Device 12 | . . . . 14 19 9 14 15 15 15 13 11 8 10 Storage 7 | . 11 14 14 9 9 9 7 7 7 7 6 6 6 5 Processor 6 | . 9 14 14 8 . 9 7 7 7 7 6 6 6 5 Protection 12 | . . . . 11 15 18 15 14 15 15 13 13 17 11 Energy Gun 10 | . . . . 4 9 9 . 4 7 8 16 16 19 14 Ballistic Gun 14 | . 25 27 20 21 18 18 22 17 15 13 9 9 6 4 Naked Turns 1 | . . . . . . . . . . . . . . 1 Heaviest Build 103 | 3 29 29 34 85 89 83 87 89 85 92 103 95 100 98 Greatest Support 90 | 40 40 40 40 40 70 70 90 90 90 90 90 60 63 63 Greatest Overweight (x) 23 | . . 1 1 2 2 1 . . . 1 1 1 1 23 Average Overweight (x) . | . . . . 1 1 1 . . . . 1 1 1 . Largest Inventory Capacity 20 | 5 15 15 15 20 20 20 20 20 20 20 20 20 20 20 Average Capacity 19 | 5 13 15 15 18 20 20 20 20 20 20 20 20 20 18 Most Carried 20 | 1 14 14 15 20 20 19 19 20 19 20 20 20 20 20 Average Carried 17 | . 9 12 12 16 18 18 17 19 19 19 19 19 19 16 Final Capacity 20 | 5 15 15 15 20 20 20 20 20 20 20 20 20 20 5 Final Carried 20 | 1 14 12 13 17 19 19 19 19 19 20 20 20 20 4 Class Distribution -------------------- 50% | Tank 22% | Scavenger-Tank 14% | Gunner 10% | Mutant Dominant Class ---------------- Mutant | -10/Materials Mutant | -10/Mines Scavenger-Mutant | -10/Subcaves Tank | -8/Materials Tank | -8/Garrison Tank | -8/Materials Gunner | -7/Factory Gunner | -7/Lower Caves Gunner | -7/Data Miner Gunner | -6/Proximity Caves Tank | -6/Factory Scavenger-Tank | -6/Lower Caves Tank | -6/Lower Caves Scavenger-Tank | -6/Zion Resources | -11 -10 -10 -10 -8 -8 -8 -7 -7 -7 -6 -6 -6 -6 -6 ----------- Run | Yrd Mat Min Sub Mat Gar Mat Fac Low Dat Pro Fac Low Low Zio Matter Collected 5035 | 179 226 172 309 1214 825 36 . 307 . 215 618 420 214 300 Remotely . | . . . . . . . . . . . . . . . Salvage Created 8600 | . 236 173 342 1371 1421 90 . 797 . 374 1719 923 551 603 Parts 377 | . 18 14 23 88 69 6 . 23 . 10 66 14 18 28 Haulers Intercepted 6 | . 1 . . 4 . 1 . . . . . . . . Recyclers Shooed 4 | . 1 . . 1 . . . . . . 2 . . . Parts Field Recycled . | . . . . . . . . . . . . . . . Retrieved Matter . | . . . . . . . . . . . . . . . Parts Self-Destructed 76 | . . . 10 . . . . 32 . 10 . 12 12 . Prevented 1 | . . . . . . . . . . 1 . . . . Kills | -11 -10 -10 -10 -8 -8 -8 -7 -7 -7 -6 -6 -6 -6 -6 ------- Run | Yrd Mat Min Sub Mat Gar Mat Fac Low Dat Pro Fac Low Low Zio Combat Hostiles Destroyed 160 | . 3 5 11 32 39 1 . 14 . 6 22 18 4 5 Melee 1 | . . . . . . . . . . . . . . 1 Guns 148 | . 3 5 7 31 39 1 . 14 . 5 20 18 4 1 Cannons 1 | . . . . 1 . . . . . . . . . . AOE 5 | . . . 4 . . . . . . 1 . . . . Classes Destroyed 29 | . 8 3 5 4 2 . . 3 . 2 . . 1 1 Worker 7 | . 2 . . . . . . . . . 5 . . . Builder 7 | . 1 1 . 3 . . . . . . 2 . . . Tunneler 2 | . . 1 . 1 . . . . . . . . . . Hauler 6 | . 1 . . 4 . 1 . . . . . . . . Recycler 8 | . 1 1 . 2 . . . . . . 4 . . . Minesweeper 3 | . . . . . . . . . . 1 . 1 1 . Mechanic 2 | . . . . 1 . . . . . . 1 . . . Operator 4 | . 1 . . 3 . . . . . . . . . . Turret 2 | . . . 2 . . . . . . . . . . . Watcher 7 | . 1 . . 5 . . . . . . 1 . . . Swarmer 52 | . 2 3 4 15 8 . . 4 . . 5 9 2 . Grunt 37 | . 1 . . 6 12 . . 4 . 2 10 1 1 . Brawler 3 | . . . . . . . . 1 . 2 . . . . Duelist 4 | . . . . . 2 . . 2 . . . . . . Sentry 30 | . . . 1 7 12 1 . 2 . 2 4 1 . . Demolisher 1 | . . 1 . . . . . . . . . . . . Specialist 4 | . . . . 2 2 . . . . . . . . . Hunter 5 | . . . . 1 1 . . 1 . 1 . 1 . . Programmer 7 | . . . . . 3 . . . . . 3 . 1 . Heavy 1 | . . . . 1 . . . . . . . . . . Behemoth 1 | . . . . . . . . . . 1 . . . . Artisan 1 | . . . 1 . . . . . . . . . . . Cobbler 1 | . . . 1 . . . . . . . . . . . Subdweller 6 | . . . 6 . . . . . . . . . . . Zionite 13 | . . . . . . . . . . . . . . 13 Decomposer 1 | . . . . . . . . 1 . . . . . . Samaritan 1 | . . . . . . . . 1 . . . . . . Tinkerer 4 | . . . . . . . . . . . . . 1 3 Assembled 1 | . . 1 . . . . . . . . . . . . Thug 1 | . . . . . . . . . . . . . 1 . Savage 7 | . . . . . . . . 1 . . . 4 1 1 Butcher 3 | . . . . . . . . 1 . . . 1 . 1 Marauder 2 | . . . . . . . . . . . . . . 2 Mutant 4 | . . . . . . . . 1 . . . 1 1 1 Best Kill Streak 12 | . 5 3 6 8 7 1 . 9 . 2 12 6 2 6 Combat Bots Only 9 | . 2 3 4 8 7 1 . 9 . 2 6 6 2 2 Max Kills in Single Turn 4 | . 2 2 4 2 2 1 . 1 . 2 4 2 1 2 Gunslinging 1 | . . . . 1 1 . . . . . 1 1 . . Exploded 4 | . . . 4 . . . . . . 1 . . . . Melee 1 | . . . . . . . . . . . . . . 1 Uniques/NPCs Destroyed . | . . . . . . . . . . . . . . . Combat | -11 -10 -10 -10 -8 -8 -8 -7 -7 -7 -6 -6 -6 -6 -6 -------- Run | Yrd Mat Min Sub Mat Gar Mat Fac Low Dat Pro Fac Low Low Zio Hostile Shots Fired 936 | . 8 8 51 117 131 4 . 66 . 42 149 116 32 212 Missed 302 | . 1 . 21 34 29 1 . 19 . 12 62 36 8 79 Damage Taken 10850 | . 69 527 572 1161 1469 47 . 855 . 448 1231 1219 396 2856 Core 1201 | . 11 . 74 66 82 . . 44 . 70 90 142 40 582 Absorbed by Shields 628 | . . . . 241 368 . . . . . . . . 19 Regen/Repaired (Parts) 283 | . . . . 96 . 187 . . . . . . . . Core Remaining (%) 80 | 100 . . 66 . . 73 . . . 83 . . . . Volleys Fired 426 | . 22 12 36 77 73 4 . 23 . 16 57 34 21 51 Largest 4 | . 2 2 2 3 3 3 . 3 . 3 4 4 4 4 Hottest 245 | . 46 46 104 136 137 134 . 137 . 148 231 245 230 238 Shots Fired 1261 | . 44 24 65 224 206 12 . 69 . 48 224 138 80 127 Gun 1218 | . 44 24 43 212 206 12 . 69 . 43 224 138 80 123 Cannon 31 | . . . 19 12 . . . . . . . . . . Launcher 12 | . . . 3 . . . . . . 5 . . . 4 Special . | . . . . . . . . . . . . . . . Kinetic 692 | . 44 24 46 168 133 8 . 54 . 30 82 49 23 31 Thermal 560 | . . . 19 56 73 4 . 15 . 13 142 89 57 92 Explosive 9 | . . . . . . . . . . 5 . . . 4 Electromagnetic . | . . . . . . . . . . . . . . . Robot Hit Streak 29 | . 6 7 29 12 28 4 . 8 . 7 12 17 9 17 Robot Miss Streak 11 | . 6 3 2 10 9 6 . 5 . 8 5 8 11 2 Penetration Max . | . . . . . . . . . . . . . . . Secondary Targets 37 | . . . 2 4 11 . . 5 . 1 4 7 2 1 Max Gunslinging Chain 2 | . . . 1 1 2 . . 1 . 1 1 1 1 1 Shots Hit Robots 901 | . 27 16 47 172 164 8 . 52 . 37 154 95 33 96 Core Hits 787 | . 19 14 34 159 168 4 . 56 . 49 146 76 27 35 Critical Kills 2 | . . . . 1 . . . . . . . . . 1 Critical Parts Destroyed 3 | . . . . 1 . . . . . . . . . 2 Critical Strikes 39 | . . . . 5 6 . . 1 . . 11 6 2 8 Burn 34 | . . . . 3 6 . . 1 . . 11 6 2 5 Meltdown 1 | . . . . 1 . . . . . . . . . . Destroy 1 | . . . . 1 . . . . . . . . . . Smash 3 | . . . . . . . . . . . . . . 3 Melee Attacks 15 | . . . . . . . . . . . . . . 15 Impact 9 | . . . . . . . . . . . . . . 9 Slashing . | . . . . . . . . . . . . . . . Piercing 6 | . . . . . . . . . . . . . . 6 Sneak Attacks . | . . . . . . . . . . . . . . . Combat Hostiles . | . . . . . . . . . . . . . . . Follow-up Attacks 1 | . . . . . . . . . . . . . . 1 Damage Inflicted 19027 | . 423 244 1351 2994 3295 164 . 1112 . 1016 3662 1777 745 2244 Guns 16764 | . 423 244 700 2814 3295 164 . 1112 . 776 3102 1777 745 1612 Cannons 423 | . . . 252 171 . . . . . . . . . . Explosions 1553 | . . . 399 . . . . . . 240 560 . . 354 Melee 278 | . . . . . . . . . . . . . . 278 Ramming 9 | . . . . 9 . . . . . . . . . . Kinetic 9852 | . 423 244 1099 2113 2141 89 . 797 . 608 1356 552 151 279 Thermal 8009 | . . . 252 872 1154 75 . 315 . 168 2021 1225 594 1333 Explosive 594 | . . . . . . . . . . 240 . . . 354 Electromagnetic 285 | . . . . . . . . . . . 285 . . . Impact 194 | . . . . . . . . . . . . . . 194 Slashing . | . . . . . . . . . . . . . . . Piercing 84 | . . . . . . . . . . . . . . 84 Highest Corruption 16 | . . 13 13 . . . . . . . 3 3 3 16 Average Corruption 4 | . . 13 13 . . . . . . . 2 3 3 4 Corruption Purged . | . . . . . . . . . . . . . . . Corruption Blocked . | . . . . . . . . . . . . . . . Effects 172 | . . 18 35 . . . . . . . 8 48 41 22 Message Errors 40 | . . 6 9 . . . . . . . 3 12 7 3 Matter Fused 43 | . . 2 7 . . . . . . . 1 15 11 7 Heat Flow Errors 22 | . . 1 5 . . . . . . . . 8 6 2 Energy Discharges 20 | . . 2 5 . . . . . . . 1 5 4 3 Parts Rejected 2 | . . . . . . . . . . . . . . 2 Data Loss (minor) 15 | . . 3 3 . . . . . . . 1 3 5 . Data Loss (major) 10 | . . 3 . . . . . . . . . 2 3 2 Misfires 11 | . . . 4 . . . . . . . 2 3 1 1 Alerts 6 | . . 1 1 . . . . . . . . . 3 1 Misdirections 2 | . . . 1 . . . . . . . . . . 1 Weapon Failures 1 | . . . . . . . . . . . . . 1 . Overload Shots . | . . . . . . . . . . . . . . . Overflow Damage 103 | . . . . . . . . . . . 32 . . 71 Projectiles . | . . . . . . . . . . . . . . . Explosions 32 | . . . . . . . . . . . 32 . . . Melee 71 | . . . . . . . . . . . . . . 71 Knockbacks 2 | . . . . . . . . . . . . . . 2 Impact 2 | . . . . . . . . . . . . . . 2 Kinetic . | . . . . . . . . . . . . . . . Secondary . | . . . . . . . . . . . . . . . Self-Inflicted Damage 318 | . . . . 100 78 . . . . . 99 . . 41 Shots 5 | . . . . 1 1 . . . . . 2 . . 1 Rammed 2 | . . . . 2 . . . . . . . . . . Targets Rammed 2 | . . . . 2 . . . . . . . . . . Kicked . | . . . . . . . . . . . . . . . Crushed . | . . . . . . . . . . . . . . . Highest Temperature 586 | . 1 235 245 408 137 . . 36 . 23 333 226 535 586 Average Temperature 85 | . 1 126 109 83 41 . . 12 . 12 69 65 143 147 Received Heat Transfer 1614 | . 24 . 153 183 414 9 . 135 . 96 324 195 81 . Effects 15 | . . . . 2 . . . . . . 1 . 6 6 Shutdowns 7 | . . . . 1 . . . . . . 1 . 3 2 Energy Bleed 1 | . . . . . . . . . . . . . . 1 Interference 4 | . . . . . . . . . . . . . 3 1 Matter Decay 1 | . . . . 1 . . . . . . . . . . Short Circuit 1 | . . . . . . . . . . . . . . 1 Damage (core) 1 | . . . . . . . . . . . . . . 1 Siege Activations . | . . . . . . . . . . . . . . . Robots Corrupted . | . . . . . . . . . . . . . . . Combat Hostiles . | . . . . . . . . . . . . . . . Parts Fried 5 | . . . . . . . . . . 1 4 . . . Impact Corruptions 2 | . . . . . . . . . . . . . . 2 Robots Melted 6 | . . . . 1 . . . . . . 2 . . 3 Combat Hostiles 5 | . . . . . . . . . . . 2 . . 3 Parts Melted 31 | . . . . 5 3 . . . . . 15 5 1 2 Heat Transferred 16630 | . . . 333 1924 2442 111 . 555 . 259 4368 2775 1184 2679 Parts Sabotaged . | . . . . . . . . . . . . . . . Parts Stolen . | . . . . . . . . . . . . . . . Parts Stripped . | . . . . . . . . . . . . . . . Power Chain Reactions 1 | . . . . . . . . . . . 1 . . . Alert | -11 -10 -10 -10 -8 -8 -8 -7 -7 -7 -6 -6 -6 -6 -6 ------- Run | Yrd Mat Min Sub Mat Gar Mat Fac Low Dat Pro Fac Low Low Zio Peak Influence 1966 | . 149 96 . 607 1966 1010 459 . . . 383 . . . Initial 958 | . . 1 . 96 396 958 459 . . . 18 . . . Average 429 | . 39 38 . 137 1036 984 459 . . . 99 . . . Maximum Alert Level 5 | . . . . 2 5 3 2 . . . 1 . . . Low Security (%) 55 | 100 100 100 . 78 . . . . . . 93 . . . Level 1 6 | . . . . 13 5 . . . . . 6 . . . Level 2 11 | . . . . 7 20 . 100 . . . . . . . Level 3 15 | . . . . . 39 100 . . . . . . . . Level 4 6 | . . . . . 19 . . . . . . . . . Level 5 4 | . . . . . 14 . . . . . . . . . High Security . | . . . . . . . . . . . . . . . Max Security . | . . . . . . . . . . . . . . . Squads Dispatched 13 | . 2 . . 5 . . . . . . 6 . . . Investigation 1 | . . . . . . . . . . . 1 . . . Extermination 2 | . . . . . . . . . . . 2 . . . Reinforcement 9 | . 2 . . 4 . . . . . . 3 . . . Assault . | . . . . . . . . . . . . . . . Garrison 1 | . . . . 1 . . . . . . . . . . Intercept . | . . . . . . . . . . . . . . . Searches Triggered . | . . . . . . . . . . . . . . . Construction Impeded 1 | . . . . . . . . . . . 1 . . . Haulers Reinforced 1 | . . . . . . . . . . . 1 . . . Active Scanning Responses . | . . . . . . . . . . . . . . . Cargo Convoy Interrupts . | . . . . . . . . . . . . . . . Stealth | -11 -10 -10 -10 -8 -8 -8 -7 -7 -7 -6 -6 -6 -6 -6 --------- Run | Yrd Mat Min Sub Mat Gar Mat Fac Low Dat Pro Fac Low Low Zio Distress Signals 5 | . . 1 . 3 . . . . . . 1 . . . Communications Jammed . | . . . . . . . . . . . . . . . Distress Signals . | . . . . . . . . . . . . . . . Times Spotted 226 | . 8 3 14 49 41 1 . 15 . 9 27 24 7 28 Peak Tracking Total 9 | . 2 1 6 5 7 1 . 9 . 4 4 6 4 7 Tactical Retreats 13 | . . . 1 2 1 . . 1 . . 2 2 . 4 Traps | -11 -10 -10 -10 -8 -8 -8 -7 -7 -7 -6 -6 -6 -6 -6 ------- Run | Yrd Mat Min Sub Mat Gar Mat Fac Low Dat Pro Fac Low Low Zio Traps Triggered 6 | . . . . . 6 . . . . . . . . . Indirectly . | . . . . . . . . . . . . . . . Trap Hack Attempts . | . . . . . . . . . . . . . . . Triggered . | . . . . . . . . . . . . . . . Disarmed . | . . . . . . . . . . . . . . . Reprogrammed . | . . . . . . . . . . . . . . . Reused . | . . . . . . . . . . . . . . . Traps Extracted . | . . . . . . . . . . . . . . . Installed . | . . . . . . . . . . . . . . . Triggered 1 | . . . . . . . . . . 1 . . . . Machines | -11 -10 -10 -10 -8 -8 -8 -7 -7 -7 -6 -6 -6 -6 -6 ---------- Run | Yrd Mat Min Sub Mat Gar Mat Fac Low Dat Pro Fac Low Low Zio Machines Disabled 16 | . . . 4 4 2 . . . . . 6 . . . Max in Single Turn 4 | . . . 3 3 2 . . . . . 4 . . . Garrison Access 1 | . . . . . . . . . . . 1 . . . Phase Generator 1 | . . . . . 1 . . . . . . . . . Machines Repaired . | . . . . . . . . . . . . . . . Machines Dismantled . | . . . . . . . . . . . . . . . Machines Sabotaged . | . . . . . . . . . . . . . . . Overloaded Fab Kills . | . . . . . . . . . . . . . . . Hacking | -11 -10 -10 -10 -8 -8 -8 -7 -7 -7 -6 -6 -6 -6 -6 --------- Run | Yrd Mat Min Sub Mat Gar Mat Fac Low Dat Pro Fac Low Low Zio Machines Accessed 26 | . 2 . . 8 3 1 1 . 4 1 5 1 . . Terminals 14 | . 2 . . 5 3 . . . . 1 2 1 . . Fabricators 2 | . . . . . . . 1 . . . 1 . . . Repair Stations 2 | . . . . 1 . 1 . . . . . . . . Recycling Units 2 | . . . . 1 . . . . . . 1 . . . Scanalyzers . | . . . . . . . . . . . . . . . Garrison Access 2 | . . . . 1 . . . . . . 1 . . . Total Hacks 73 | . 7 . . 15 4 3 2 . 30 1 10 1 . . Successful 51 | . 3 . . 9 1 2 . . 30 1 4 1 . . Failed 22 | . 4 . . 6 3 1 2 . . . 6 . . . Catastrophic 3 | . . . . . 2 . . . . . 1 . . . Database Lockouts . | . . . . . . . . . . . . . . . Manual 20 | . 7 . . 10 1 . . . . . 2 . . . Terminals 28 | . 7 . . 11 4 . . . . 1 4 1 . . Fabricators 5 | . . . . . . . 2 . . . 3 . . . Repair Stations 5 | . . . . 2 . 3 . . . . . . . . Recycling Units 3 | . . . . 1 . . . . . . 2 . . . Scanalyzers . | . . . . . . . . . . . . . . . Garrison Access 2 | . . . . 1 . . . . . . 1 . . . Terminal Hacks 39 | . 2 . . 3 1 . . . 30 1 1 1 . . Record 13 | . . . . . . . . . 11 1 . 1 . . Part Schematic 11 | . . . . . . . . . 11 . . . . . Robot Schematic 5 | . . . . . . . . . 5 . . . . . Robot Analysis 4 | . 2 . . 2 . . . . . . . . . . Prototype ID Bank 3 | . . . . . . . . . 3 . . . . . Branch Access Points 1 | . . . . . . . . . . . 1 . . . Emergency Access Points 1 | . . . . . 1 . . . . . . . . . Unreport Threat 1 | . . . . 1 . . . . . . . . . . Fabricator Hacks 1 | . . . . . . . . . . . 1 . . . Load Schematic 1 | . . . . . . . . . . . 1 . . . Repair Station Hacks 4 | . . . . 2 . 2 . . . . . . . . Scan Component 2 | . . . . 1 . 1 . . . . . . . . Repair 2 | . . . . 1 . 1 . . . . . . . . Recycling Unit Hacks 2 | . . . . 1 . . . . . . 1 . . . Report Inventory 2 | . . . . 1 . . . . . . 1 . . . Scanalyzer . | . . . . . . . . . . . . . . . Garrison Access Hacks 2 | . . . . 1 . . . . . . 1 . . . Unlock Access 1 | . . . . 1 . . . . . . . . . . Seal Access 1 | . . . . . . . . . . . 1 . . . Unauthorized Hacks 3 | . 1 . . 2 . . . . . . . . . . Terminals 3 | . 1 . . 2 . . . . . . . . . . Botnet 3 | . 1 . . 2 . . . . . . . . . . Fabricators . | . . . . . . . . . . . . . . . Repair Stations . | . . . . . . . . . . . . . . . Recycling Units . | . . . . . . . . . . . . . . . Scanalyzers . | . . . . . . . . . . . . . . . Garrison Access . | . . . . . . . . . . . . . . . Data Cores Recovered 1 | . . . . 1 . . . . . . . . . . Used 1 | . . . . 1 . . . . . . . . . . Hacking Detections 18 | . 2 . . 6 3 1 1 . . . 4 1 . . Full Trace Events 2 | . . . . . 1 . . . . . 1 . . . Feedback Events . | . . . . . . . . . . . . . . . Feedback Blocked . | . . . . . . . . . . . . . . . Robot Schematics Acquired 5 | . . . . . . . . . 5 . . . . . Robots Built . | . . . . . . . . . . . . . . . Authchips . | . . . . . . . . . . . . . . . Time . | . . . . . . . . . . . . . . . Total Robot Build Rating . | . . . . . . . . . . . . . . . Part Schematics Acquired 11 | . . . . . . . . . 11 . . . . . Parts Built . | . . . . . . . . . . . . . . . Authchips . | . . . . . . . . . . . . . . . Time . | . . . . . . . . . . . . . . . Total Part Build Rating . | . . . . . . . . . . . . . . . Parts Repaired 2 | . . . . 1 . 1 . . . . . . . . Time 76 | . . . . 38 . 38 . . . . . . . . Parts Recycled . | . . . . . . . . . . . . . . . Recycled Matter . | . . . . . . . . . . . . . . . Retrieved Matter . | . . . . . . . . . . . . . . . Retrieved Components . | . . . . . . . . . . . . . . . Parts Scanalyzed . | . . . . . . . . . . . . . . . Part Schematics Acquired . | . . . . . . . . . . . . . . . Parts Damaged . | . . . . . . . . . . . . . . . Bothacking | -11 -10 -10 -10 -8 -8 -8 -7 -7 -7 -6 -6 -6 -6 -6 ------------ Run | Yrd Mat Min Sub Mat Gar Mat Fac Low Dat Pro Fac Low Low Zio Used RIF Installer 1 | . . . . . 1 . . . . . . . . . Robots Hacked . | . . . . . . . . . . . . . . . Non-combat . | . . . . . . . . . . . . . . . Combat . | . . . . . . . . . . . . . . . Robot Hacks Applied . | . . . . . . . . . . . . . . . Relay Couplers Released . | . . . . . . . . . . . . . . . Fabnet Peak Effective % . | . . . . . . . . . . . . . . . Robots Rewired 7 | . . . . . 3 . . 2 . . . 2 . . Allies Hacked . | . . . . . . . . . . . . . . . Hacks Repelled . | . . . . . . . . . . . . . . . Allies | -11 -10 -10 -10 -8 -8 -8 -7 -7 -7 -6 -6 -6 -6 -6 -------- Run | Yrd Mat Min Sub Mat Gar Mat Fac Low Dat Pro Fac Low Low Zio Total Allies 7 | . . . . . 3 . . 2 . . . 2 . . Largest Group 3 | . . . . . 3 . . 2 2 2 . 2 1 . Highest-Rated Group 72 | . . . . . 72 . . 52 52 52 . 40 20 . Highest-Rated Ally 32 | . . . . . 24 . . 32 32 32 . 20 20 . Total Orders . | . . . . . . . . . . . . . . . Ally Attacks 34 | . . . . . 13 . . . . 8 . 11 2 . Total Damage 1241 | . . . . . 451 . . . . 354 . 318 118 . Kills 10 | . . . . . 1 . . . . 3 . 4 2 . Allies Corrupted . | . . . . . . . . . . . . . . . Allies Melted . | . . . . . . . . . . . . . . . Intel | -11 -10 -10 -10 -8 -8 -8 -7 -7 -7 -6 -6 -6 -6 -6 ------- Run | Yrd Mat Min Sub Mat Gar Mat Fac Low Dat Pro Fac Low Low Zio Robot Analysis Total 4 | . 2 . . 2 . . . . . . . . . . Derelict Logs Recovered 6 | . . . 1 . . . . 1 . 1 . 2 1 . Drone Launches . | . . . . . . . . . . . . . . . Drone Recoveries . | . . . . . . . . . . . . . . . Exploration | -11 -10 -10 -10 -8 -8 -8 -7 -7 -7 -6 -6 -6 -6 -6 ------------- Run | Yrd Mat Min Sub Mat Gar Mat Fac Low Dat Pro Fac Low Low Zio Turns Passed 16943 | 42 505 685 780 2636 2578 272 257 1211 128 602 1416 2513 2483 835 Spaces Moved 6421 | 32 246 101 449 855 787 93 152 665 76 309 462 944 966 284 Core 17 | 12 . . . . . . . . . . . . . 5 Treads 5999 | 20 246 101 104 855 787 93 152 665 76 309 462 944 966 219 Legs . | . . . . . . . . . . . . . . . Wheels 345 | . . . 345 . . . . . . . . . . . Hover . | . . . . . . . . . . . . . . . Flight 60 | . . . . . . . . . . . . . . 60 Fastest Speed 50 | 50 160 160 110 160 240 240 165 165 165 165 245 250 246 50 Average Speed 223 | 118 160 210 142 249 280 240 165 165 165 170 247 250 248 209 Slowest Speed 1200 | 160 160 240 240 330 330 240 165 165 165 245 250 250 250 1200 Overloaded Moves . | . . . . . . . . . . . . . . . Propulsion Burnouts . | . . . . . . . . . . . . . . . Robots Hopped . | . . . . . . . . . . . . . . . Cave-ins Triggered 1 | . . 1 . . . . . . . . . . . . Exploration Rate (%) 47 | 3 42 25 43 57 94 13 4 70 68 56 18 98 98 23 Regions Visited 14 Branch Regions 8 Pre-discovered Areas 2 | . . . 1 . . . . . 1 . . . . . Known Exits Taken 3 | . . . . 1 . . . . . . 1 1 . . Unknown Exits Taken 10 | 1 1 1 1 . . 1 1 1 1 1 . . 1 . Scrap Searched 12 | . . 1 1 . . . . 1 . 2 . 3 3 1 Spaces Dug 13 | . . . 13 . . . . . . . . . . . Terrain Destroyed 226 | . . . 44 65 53 . . . . 30 7 2 . 25 Melee . | . . . . . . . . . . . . . . . Projectile 8 | . . . 1 5 . . . . . . . 2 . . AOE 218 | . . . 43 60 53 . . . . 30 7 . . 25 Terrain Rammed . | . . . . . . . . . . . . . . . Walls Destroyed . | . . . . . . . . . . . . . . . Machines Disabled . | . . . . . . . . . . . . . . . Actions | -11 -10 -10 -10 -8 -8 -8 -7 -7 -7 -6 -6 -6 -6 -6 --------- Run | Yrd Mat Min Sub Mat Gar Mat Fac Low Dat Pro Fac Low Low Zio Total 8116 | 35 312 550 528 1190 1015 135 158 730 79 348 606 1023 1002 405 Wait 896 | . 28 434 23 185 85 38 . 6 4 10 51 8 2 22 Move 6408 | 31 245 100 448 855 786 92 151 664 75 308 461 943 965 284 Hop . | . . . . . . . . . . . . . . . Pick Up 80 | 1 13 1 4 18 13 1 3 2 . 4 10 7 2 1 Fast Attach 47 | 3 4 . 4 8 7 . . . . . 3 3 2 13 Attach 49 | . . 3 2 9 6 . 2 2 . 1 7 2 2 13 Detach 7 | . . . 1 1 3 . . . . . 2 . . . Swap 42 | . . . 4 14 2 . 1 . . 7 5 3 3 3 Drop 69 | . . . 6 21 11 . 1 . . 2 10 9 5 4 Fire 426 | . 22 12 36 77 73 4 . 23 . 16 57 34 21 51 Melee 14 | . . . . . . . . . . . . . . 14 Ram . | . . . . . . . . . . . . . . . Kick . | . . . . . . . . . . . . . . . Crush 2 | . . . . 2 . . . . . . . . . . Escape Stasis 8 | . . . . . 8 . . . . . . . . . Rewire 68 | . . . . . 21 . . 33 . . . 14 . . Trap . | . . . . . . . . . . . . . . . Miscellaneous . | . . . . . . . . . . . . . . . Route ------- -11/Scrapyard -10/Materials -10/Mines -10/Subcaves (discovered 2 exits: *Mat / [*Rec]) -8/Materials (discovered 2 exits: *Fac / Gar) -8/Garrison (discovered 4 exits: *Mat x4) -8/Materials -7/Factory -7/Lower Caves -7/Data Miner -6/Proximity Caves -6/Factory (discovered 6 exits: *Fac x2 / *Low x2 / Ext x2) -6/Lower Caves -6/Lower Caves (discovered 2 exits: *Fac / [*Zio]) -6/Zion (discovered 1 exit: [*Pro]) History --------- Turn | Location | Event 10 | -11/Scrapyard | Discovered new exit (range 16) 43 | -11/Scrapyard | Entered Materials 292 | -10/Materials | Discovered new exit (range 10) 317 | -10/Materials | Build established: Mutant 548 | -10/Materials | Entered Mines 549 | -10/Mines | Assembled infested the area 554 | -10/Mines | Assisted by a Guerilla fighting off Assembled 568 | -10/Mines | Met a Derelict bent on vengeance 759 | -10/Mines | Crushed by falling debris 759 | -10/Mines | System corruption reached 10% 790 | -10/Mines | Lost 4 parts (1p1n2w) 1223 | -10/Mines | Discovered new exit (range 4) 1233 | -10/Mines | Entered Subcaves 1463 | -10/Subcaves | A Subdweller sparked back to life 1463 | -10/Subcaves | A Subdweller sparked back to life 1463 | -10/Subcaves | A Subdweller sparked back to life 1710 | -10/Subcaves | Shifting Twisted Machinery released Shrapnel Trap 1716 | -10/Subcaves | Shifting Twisted Machinery released Battle Rifle 1782 | -10/Subcaves | Discovered new exit (range 10) 1800 | -10/Subcaves | Learned location of Zion (-6) 1869 | -10/Subcaves | Discovered new exit (range 14) 1904 | -10/Subcaves | Shifting Twisted Machinery released Sub. Machine Gun 1906 | -10/Subcaves | Shifting Twisted Machinery released Flamer 2013 | -10/Subcaves | Entered Materials 2013 | -8/Materials | Evolved 4 slots: Utility x3, Weapon x1 2410 | -8/Materials | Build established: Tank 3610 | -8/Materials | Repaired Arm. Treads 4350 | -8/Materials | Lost 4 parts (2p2u) 4374 | -8/Materials | Discovered new exit (range 15) 4414 | -8/Materials | Destroyed 8 combat bots 4566 | -8/Materials | Garrison activated, responded to threat 4649 | -8/Materials | Identified exit to Garrison 4649 | -8/Materials | Entered Garrison 4785 | -8/Garrison | Triggered checkpoint 4788 | -8/Garrison | Triggered checkpoint 5113 | -8/Garrison | Triggered checkpoint 5296 | -8/Garrison | Discovered new exit (range 9) 5445 | -8/Garrison | Installed Relay Interface Framework 5506 | -8/Garrison | Phase Generator disabled 6117 | -8/Garrison | Triggered checkpoint 6164 | -8/Garrison | Triggered checkpoint 6191 | -8/Garrison | Discovered new exit (range 3) 6333 | -8/Garrison | P-60 Hacker assimilated allied Shotgunner 3b 6351 | -8/Garrison | Triggered checkpoint 6530 | -8/Garrison | Discovered new exit (range 13) 6659 | -8/Garrison | Triggered checkpoint 6873 | -8/Garrison | Destroyed 7 combat bots 6905 | -8/Garrison | Triggered checkpoint 7118 | -8/Garrison | Lost 3 parts (3u) 7206 | -8/Garrison | Discovered new exit (range 10) 7227 | -8/Garrison | Entered Materials 7313 | -8/Materials | Repaired Arm. Treads 7492 | -8/Materials | Discovered new exit (range 4) 7499 | -8/Materials | Entered Factory 7499 | -7/Factory | Evolved 2 slots: Propulsion x1, Utility x1 7607 | -7/Factory | Discovered new exit (range 15) 7756 | -7/Factory | Entered Lower Caves 7802 | -7/Lower Caves | Build established: Gunner 7893 | -7/Lower Caves | Learned location of 1 exit from Factory 8209 | -7/Lower Caves | Attracted the attention of an 0b10 checkpoint 8379 | -7/Lower Caves | A Derelict revealed a hidden shortcut to meet someone special 8616 | -7/Lower Caves | Attracted the attention of an 0b10 outpost 8667 | -7/Lower Caves | Destroyed 9 combat bots 8814 | -7/Lower Caves | Encountered a Warlord checkpoint 8857 | -7/Lower Caves | Murdered 3 allies 8967 | -7/Lower Caves | Entered Data Miner 8967 | -7/Data Miner | Accompanied by 2 allies 8967 | -7/Data Miner | Discovered new exit (range 7) 8999 | -7/Data Miner | Met Data Miner 9029 | -7/Data Miner | Learned location of Section 7 (-2) 9029 | -7/Data Miner | Acquired the access code to Warlord's prototype stash 9057 | -7/Data Miner | Received God Mode back door access code from Data Miner 9095 | -7/Data Miner | Entered Proximity Caves 9095 | -6/Proximity Caves | Accompanied by 2 allies 9397 | -6/Proximity Caves | Learned Factory emergency access door positions 9463 | -6/Proximity Caves | Attracted the attention of an 0b10 checkpoint 9531 | -6/Proximity Caves | Spotted B-75 Beast 9555 | -6/Proximity Caves | Destroyed B-75 Beast 9678 | -6/Proximity Caves | Discovered new exit (range 15) 9697 | -6/Proximity Caves | Entered Factory 9697 | -6/Factory | Evolved 2 slots: Power x1, Weapon x1 9698 | -6/Factory | Identified exit to Factory 10175 | -6/Factory | Discovered exit to Factory (range 10) 10199 | -6/Factory | Build established: Tank 10652 | -6/Factory | Spotted B-75 Beast 10908 | -6/Factory | Identified exit to Lower Caves 10908 | -6/Factory | Identified exit to Extension 11068 | -6/Factory | Build established: Scavenger-Tank 11113 | -6/Factory | Entered Lower Caves 11257 | -6/Lower Caves | Identified exit to Lower Caves 11364 | -6/Lower Caves | Attracted the attention of an 0b10 checkpoint 11663 | -6/Lower Caves | Build established: Tank 11735 | -6/Lower Caves | Attacked by a faux Warlord 12105 | -6/Lower Caves | Build established: Scavenger-Tank 13124 | -6/Lower Caves | Learned location of 1 exit from Proximity Caves 13609 | -6/Lower Caves | Build established: Tank 13626 | -6/Lower Caves | Entered another Lower Caves area 13626 | -6/Lower Caves | Accompanied by 1 ally 13666 | -6/Lower Caves | Learned location of 1 exit from Factory 14534 | -6/Lower Caves | Discovered exit to Factory (range 8) 15262 | -6/Lower Caves | Encountered a Warlord checkpoint 15302 | -6/Lower Caves | Murdered 3 allies 15514 | -6/Lower Caves | Discovered new exit (range 11) 15598 | -6/Lower Caves | Build established: Scavenger-Tank 16109 | -6/Lower Caves | Entered Zion 16156 | -6/Zion | RIF detected upon attempting to enter Zion 16156 | -6/Zion | Attacked by Zionites 16277 | -6/Zion | Discovered new exit (range 16) 16310 | -6/Zion | Found Prototype Device 16310 | -6/Zion | Identified Bomb Factory No. 2 16511 | -6/Zion | Spotted RC-XET(B) 16512 | -6/Zion | Spotted OZ-C6C(B) 16562 | -6/Zion | Destroyed RC-XET(B) 16562 | -6/Zion | Core integrity fell below 50% 16569 | -6/Zion | Destroyed OZ-C6C(B) 16570 | -6/Zion | Lost 4 parts (1n1u2w) 16773 | -6/Zion | Lost 3 parts (1n1u1w) 16829 | -6/Zion | Lost 6 parts (2p2n1u1w) 16839 | -6/Zion | System corruption reached 10% 16878 | -6/Zion | Lost 6 parts (1p3u2w) 16886 | -6/Zion | Released all parts (7) 16889 | -6/Zion | Core integrity fell below 20% 16944 | -6/Zion | Destroyed by M1-EOQ(z) with Makeshift Shrapnel Gun Last Messages --------------- M1-EOQ(z) bursts out of the Twisted Machinery. RX-HAL(z) bursts out of the Twisted Machinery. 16903_ RX-HAL(z) pulls a Mak. Hammer out of the Twisted Machinery. 16903_ Acquired 16 matter. 16904_ M1-EOQ(z) pulls a Mak. Shrapnel Gun out of the Twisted Machinery. 16908_ System corrupted: Energy discharge (-35). 16917_ Acquired 4 matter. 16920_ Acquired Hvy. Flail. [Achievement: Monster] 16933_ System corrupted: IFF burst signal emitted. 16942_ RX-HAL(z) destroyed. 16944_ Hvy. Flail follow-up attack on M1-EOQ(z). 16944_ M1-EOQ(z) suffers critical hit (Smash). 16944_ Destroyed Unknown Leg. 16944_ M1-EOQ(z) system corrupted by crushing effect. 16944_ M1-EOQ(z) knocked back. Map ----- +----------------------------------------------------+ | """??????????????????????????###????????????? | | ""##???????????????????????### ##???????????? | | !!! """#??????????????????????## #???????????? | | !!! "#???????????????????????# < ##??????????? | | *! "#???????????????????????# #??????????? | | """""#???????????????????????## #??????????? | | *""##????????????????????????# #??????????? | | %* ""#????????????????????????# ##??????????? | | * ! ""#???????????????????####### ##???????????? | | "= ""#??????????????????## ! # ##????????????? | | " "##??????????????????#"" ""## #?????????????? | | "" "#??????????????????#"" ## ###??#######??# | | "" ""#??????????????????#"" "## #??# """### | | ""###????????????????### ## #??# " "## | | """#????????????????# #! # ##??# | | ""##????????????????# !% "##?## | | ""##?????????????????# % "#??# # | | """"#?????????????????# ### ;#??## # | | * """##?????????????????# ## ;;##"# # | | """#??????????????????# % %=# # | | """#??#####??????????##% % # | | ""###?# "############ = #### | | """#?# """"""""""""# | | " "### """""" "" # % ### | | "" = "# ## ### #?? | | #"" * z@ ### # ##?? | | #""" [ * # #?# ###??? | | """" "# z# ## ## #?# #????? | | """""#### """""" # ####### #?# #??### | | """###??# """""" ## #?????# #?# ### # | | ""#"#????# "#### # # # # #?????# ### ## | | """"#????#####??# #####????## ## ## | | ??""????????????###### ####???????## ## # | | ?????????????????????###???????#### # | | ?????????????????????????????###" | | ?????????????????????????????#"& | | ?????????????????????????????## ! | | ??????????????????????????????#" | | ??????????????????????????????#"" | | ??????????????????????????????## ## ##### | | ???????????????????????????????## #### ##???? | | ????????????????????????????????#####??### #????? | | ????????????????????????????????????????## ##???? | | ????????????????????????????????????????# #???? | | ????????????????????????????????????????# #???? | | ????????????????????????????????????????## ##???? | | ???????????????????????????????????????## #???? | | ???????????????????????????????????????# ##???? | | ???????????????????????????????????????## #???? | | ???????????????????????????????????????# #???? | +----------------------------------------------------+ Best States ------------- Heat Dissipation 87 Energy Generation 30 Energy Capacity 505 Matter Stores 300 Matter Capacity 300 Sight Range 16 Robot Scan Range 15 Terrain Scan Density 10 Armor Coverage 600 Evasion (%) 59 Targeting Accuracy 10 Core Analysis 6 Recoil Reduction 3 Kinecelleration 40 Offensive Hacking 10 Item Schematics ----------------- Combat Drone Bay | -7/Data Miner | Free Cld. Aerolev Unit | -7/Data Miner | Free Lgt. Regenerative Plating | -7/Data Miner | Free Gravity Neutralizer | -7/Data Miner | Free Gui. EMP Blaster | -7/Data Miner | Free Hvy. Treads | -7/Data Miner | Free Imp. Launcher Guidance Computer | -7/Data Miner | Free Hvy. Shock Bomb Launcher | -7/Data Miner | Free Wave Gun | -7/Data Miner | Free Adv. Thermal Shield | -7/Data Miner | Free Myomer Leg | -7/Data Miner | Free Robot Schematics ------------------ X-67 Chaingunner | -7/Data Miner | Free G-50 Soldier | -7/Data Miner | Free S-27 Virus | -7/Data Miner | Free H-55 Commando | -7/Data Miner | Free R-10 Processor | -7/Data Miner | Free Fabricated ------------ Nothing Alien Tech Used ----------------- None Achievements -------------- Monster Challenges ------------ None Game ------ Seed gottagofast Manual? 1 Play Time 01:30:31 Cumulative 167.8 hours Start 2024.06.09 @ 17:46:48 End 2024.06.09 @ 23:04:08 Sessions 3 Manual Loads 0 Difficulty Rogue Special Mode None Game No. 173 Rogue 173 Adventurer 0 Explorer 0 Win Type - Total 10 Types 9/0/0/1/0/0/0/0/0 Lore% 67 Gallery% 78 Achievement% 64 Wizard Run 0 Options --------- Layout 1 ASCII 0 Keyboard 0 Movement Numpad Keybinds 0 Fullscreen 1 Font 24/Smallcaps Map View 50x35 Zoom Use 0% Tactical HUD 1 Map Filters NONE Filters NONE Steam 1 RUN: e7645351-018a-48a6-8c67-e809a5b9369a